bitfinex/quotes_SOLUSD_20250129
["timestamp","ask_amount","ask_price","bid_price","bid_amount"]
[1738177210194,5.240026,229.86,229.76,0.12549]
[1738177210396,1.0,229.84,229.69,1.0]
[1738177210721,6.0906,229.86,229.69,1.0]
[1738177210722,1.0,229.8,229.69,1.0]
[1738177210916,1.0,229.78,229.51,1.0]
[1738177211115,0.81640756,229.77,229.49,1.0]
[1738177211284,0.81640756,229.77,229.44,15.2544]
[1738177211489,0.81640756,229.77,229.69,1.0]
[1738177211801,0.81640756,229.77,229.44,58.8386]
[1738177211802,1.81640756,229.77,229.76,1.0]
[1738177212004,1.0,229.77,229.6,1.73459224]
[1738177212207,1.0,229.84,229.45,5.45752444]
[1738177212407,0.81602941,229.89,229.53,0.12549]
[1738177212609,1.0,229.99,229.53,0.25098]
[1738177212798,1.0,229.99,229.64,30.0]
[1738177213000,0.81544503,230.03,229.71,30.0]
[1738177213204,0.81536802,230.02,229.7,1.0]
[1738177213404,1.0,229.98,229.52,5.45752444]
[1738177213600,1.0,230.08,229.55,3.43953118]
[1738177213814,1.0,230.14,229.56,5.45752444]
[1738177214017,1.0,230.08,229.82,30.0]
[1738177214215,1.0,230.12,229.9,0.25098]
[1738177214516,1.0,230.15,229.94,0.25098]
[1738177214705,1.0,230.16,229.94,0.25098]
[1738177214903,2.1715,230.26,229.94,0.25098]
[1738177214904,1.0,230.15,229.98,0.25098]
[1738177215103,1.0,230.14,229.98,0.25098]
[1738177215305,1.0,230.07,229.98,0.25098]
[1738177215507,2.0,230.05,229.91,15.2233]
[1738177215699,1.0,229.97,229.81,4.3514]
[1738177215911,1.0,229.93,229.81,4.3514]
[1738177216114,1.0,229.96,229.81,4.3514]
[1738177216414,1.0,229.99,229.79,30.0]
[1738177216616,1.0,229.97,229.77,21.7603]
[1738177216919,1.0,229.87,229.76,4.3523]
[1738177217124,1.0,229.8,229.7,10.8833]
[1738177217325,1.0,229.8,229.71,4.3533]
[1738177217525,1.0,229.92,229.71,4.3533]
[1738177217823,1.0,229.89,229.72,0.12549]
[1738177218017,1.0,229.89,229.71,15.2365]
[1738177218018,1.0,229.84,229.71,15.2365]
[1738177218323,1.81571419,230.01,229.76,15.35869]
[1738177218512,1.0,229.87,229.76,4.3523]
[1738177218700,1.0,229.88,229.76,4.3523]
[1738177218901,1.0,229.76,229.65,4.3544]
[1738177219224,1.0,229.95,229.51,81.6]
[1738177219225,1.0,229.7,229.55,10.8904]
[1738177219416,0.12549,229.83,229.55,10.8904]
[1738177219417,1.0,229.71,229.58,20.0]
[1738177219617,1.0,229.64,229.55,10.8904]
[1738177219821,1.0,229.66,229.54,4.3565]
[1738177220126,1.0,229.68,229.54,4.3565]
[1738177220317,1.0,229.64,229.4,15.257]
[1738177220509,1.0,229.58,229.4,37.0523]
[1738177220712,1.0,229.49,229.4,15.257]
[1738177220915,1.0,229.47,229.4,4.3591]
[1738177221321,1.0,229.5,229.4,4.3591]
[1738177221528,2.0,229.48,229.18,58.33993955]
[1738177221701,1.0,229.46,229.19,0.89778088]
[1738177221901,1.0,229.49,229.23,30.0]
[1738177222105,1.0,229.57,229.27,21.2384636]
[1738177222405,1.0,229.57,229.45,0.25098]
[1738177222621,1.0,229.51,229.46,0.25098]
[1738177222823,2.0,229.53,229.43,4.3586]
[1738177223018,1.0,229.48,229.23,29.80075575]
[1738177223223,1.0,229.61,229.28,0.43252946]
[1738177223524,1.0,229.52,229.36,1.0]
[1738177223729,1.0,229.56,229.29,22.52105747]
[1738177224023,1.0,229.54,229.32,20.0]
[1738177224206,0.81713331,229.53,229.32,20.0]
[1738177224409,1.0,229.49,229.33,10.9013]
[1738177224709,1.0,229.5,229.33,10.9013]
[1738177224913,0.81722254,229.58,229.33,10.9013]
[1738177225214,3.43026749,229.59,229.34,0.50196]
[1738177225438,0.81696749,229.59,229.36,20.0]
[1738177225637,1.0,229.56,229.38,24.278844]
[1738177225838,1.0,229.63,229.38,24.278844]
[1738177226009,1.0,229.59,229.41,20.0]
[1738177226208,1.0,229.63,229.41,20.0]
[1738177226422,1.0,229.58,229.36,1.0]
[1738177226625,1.0,229.61,229.37,21.0]
[1738177226828,1.0,229.61,229.34,37.0627]
[1738177227133,1.0,229.57,229.34,37.0627]
[1738177227341,1.0,229.53,229.35,25.278844]
[1738177227530,1.0,229.59,229.35,0.50196]
[1738177227711,1.0,229.61,229.35,0.50196]
[1738177227921,1.0,229.56,229.34,18.34346342]
[1738177228108,20.0,229.52,229.33,0.063]
[1738177228434,1.0,229.42,229.33,0.063]
[1738177228617,1.0,229.49,229.33,0.063]
[1738177228821,0.81725878,229.51,229.33,0.063]
[1738177229019,0.81706887,229.56,229.35,24.278844]
[1738177229335,0.81699567,229.58,229.35,24.278844]
[1738177229509,20.81686602,229.61,229.35,24.278844]
[1738177229711,1.0,229.56,229.34,15.2611]
[1738177229915,1.0,229.6,229.34,15.2611]
[1738177230141,1.0,229.59,229.37,20.0]
[1738177230309,1.0,229.6,229.39,20.0]
[1738177230513,2.0,229.62,229.41,20.0]
[1738177230833,2.0,229.62,229.38,15.2584]
[1738177230834,1.0,229.47,229.38,4.3595]
[1738177231035,1.0,229.41,229.35,4.36]
[1738177231334,1.0,229.38,229.33,4.4234]
[1738177231535,1.0,229.34,229.33,4.4234]
[1738177231736,1.0,229.34,229.33,0.063]
[1738177231919,1.0,229.36,229.34,4.3603]
[1738177232121,1.0,229.39,229.33,0.063]
[1738177232339,1.0,229.38,229.33,4.4234]
[1738177232630,1.0,229.39,229.33,4.4234]
[1738177232845,1.0,229.48,229.34,0.50196]
[1738177233023,1.0,229.48,229.42,0.50196]
[1738177233212,1.0,229.47,229.41,20.0]
[1738177233425,1.0,229.4,229.33,4.4234]
[1738177233818,1.0,229.34,229.33,0.063]
[1738177234138,1.0,229.46,229.34,15.2611]
[1738177234320,1.0,229.41,229.34,4.3603]
[1738177234521,1.0,229.4,229.34,4.3603]
[1738177234729,1.0,229.36,229.33,0.063]
[1738177235015,1.0,229.29,229.27,4.3615]
[1738177235341,1.0,229.3,229.19,10.9075]
[1738177235547,1.0,229.33,229.22,20.0]
[1738177235835,1.0,229.31,229.23,0.12549]
[1738177236039,1.0,229.23,229.18,4.3633]
[1738177236237,1.0,229.23,228.96,31.6585]
[1738177236238,0.2941189,229.19,229.13,4.3641]
[1738177236539,0.12549,229.27,229.03,51.76]
[1738177236540,0.2941189,229.33,229.17,4.4264]
[1738177236747,1.2941189,229.28,229.17,15.3353]
[1738177236916,0.2941189,229.27,229.17,15.3353]
[1738177237123,0.2941189,229.3,229.17,15.3353]
[1738177237638,0.2941189,229.35,229.23,0.063]
[1738177237846,0.3241189,229.36,229.23,0.063]
[1738177238049,0.2941189,229.29,229.23,0.063]
[1738177238346,3.9206,229.56,229.26,1.0]
[1738177238540,0.81109393,229.55,229.27,0.65362867]
[1738177238737,1.0,229.66,229.31,1.0]
[1738177239044,0.81109393,229.69,229.44,0.50196]
[1738177239222,0.81109393,229.69,229.45,0.65326184]
[1738177239420,20.0,229.62,229.45,0.65326184]
[1738177239621,0.81109393,229.61,229.46,0.65357935]
[1738177239840,30.24397969,229.62,229.51,30.24397969]
[1738177240028,30.24397969,229.64,229.54,30.24397969]
[1738177240232,30.24397969,229.66,229.55,0.65330544]
[1738177240457,31.05507362,229.7,229.58,30.24397969]
[1738177240744,31.05507362,229.7,229.55,0.65330544]
[1738177240745,31.05507362,229.7,229.6,30.24397969]
[1738177240952,30.24397969,229.61,229.43,30.24397969]
[1738177241134,30.24397969,229.55,229.44,0.65345888]
[1738177241332,30.24397969,229.53,229.44,0.65345888]
[1738177241541,30.24397969,229.46,229.37,5.01319916]
[1738177241753,30.24397969,229.44,229.38,0.65368886]
[1738177241953,30.24397969,229.48,229.38,0.65368886]
[1738177242138,30.24397969,229.48,229.39,0.50196]
[1738177242448,3.9213,229.52,229.4,0.6536453]
[1738177242651,23.776884,229.49,229.28,10.9034]
[1738177242853,23.776884,229.45,229.29,0.6538418]
[1738177243032,0.81109393,229.48,229.29,0.6538418]
[1738177243226,13.7207,229.58,229.29,0.6538418]
[1738177243227,24.278844,229.46,229.29,0.6538418]
[1738177243440,30.24397969,229.36,229.26,34.60567969]
[1738177243648,30.24397969,229.36,229.27,0.65404535]
[1738177244139,0.81109393,229.37,229.29,30.24397969]
[1738177244332,0.81109393,229.4,229.3,0.65405583]
[1738177244531,3.9219,229.48,229.32,0.12549]
[1738177244734,0.81109393,229.47,229.34,20.0]
[1738177244964,0.81109393,229.47,229.35,0.65391655]
[1738177245253,3.9202,229.58,229.36,0.50196]
[1738177245447,30.24397969,229.51,229.41,30.24397969]
[1738177245638,0.81109393,229.57,229.45,30.24397969]
[1738177245639,0.12549,229.54,229.45,30.24397969]
[1738177245832,30.24397969,229.49,229.39,0.6536122]
[1738177246043,30.24397969,229.49,229.39,30.89759189]
[1738177246234,23.776884,229.45,229.39,0.6536122]
[1738177246434,23.776884,229.45,229.36,0.12549]
[1738177246435,0.81109393,229.44,229.32,0.65380065]
[1738177246633,44.278844,229.49,229.3,20.0]
[1738177246835,44.278844,229.49,229.28,4.3614]
[1738177246836,0.12549,229.42,229.25,4.3619]
[1738177247030,0.81109393,229.41,229.26,0.65421743]
[1738177247231,0.81109393,229.41,229.26,20.65421743]
[1738177247436,30.24397969,229.33,229.26,0.65421743]
[1738177247638,30.24397969,229.35,229.26,0.65421743]
[1738177247852,30.24397969,229.37,229.27,0.12549]
[1738177248038,31.05507362,229.41,229.31,30.24397969]
[1738177248241,31.05507362,229.41,229.29,30.24397969]
[1738177248441,3.9232,229.4,229.24,0.65406965]
[1738177248642,0.81109393,229.39,229.26,20.0]
[1738177248863,3.9224,229.45,229.28,0.37647]
[1738177249059,0.12549,229.37,229.28,0.6539626]
[1738177249362,0.12549,229.37,229.26,20.0]
[1738177249363,30.24397969,229.34,229.27,0.65421497]
[1738177249534,0.81109393,229.33,229.26,0.063]
[1738177249729,30.24397969,229.38,229.26,0.71715778]
[1738177250030,23.776884,229.29,229.26,0.063]
[1738177250230,0.12549,229.38,229.26,0.063]
[1738177250231,23.776884,229.27,229.26,0.063]
[1738177250468,24.58797793,229.27,229.26,0.063]
[1738177250781,25.58797793,229.27,229.17,0.063]
[1738177250936,3.9256,229.26,229.17,0.063]
[1738177251136,1.0,229.18,229.01,0.65448337]
[1738177251441,0.81109393,229.17,229.06,30.24397969]
[1738177251641,30.24397969,229.07,229.06,30.24397969]
[1738177251859,30.24397969,229.13,229.06,30.24397969]
[1738177252155,30.24397969,229.08,229.06,30.24397969]
[1738177252362,30.24397969,229.1,229.06,30.24397969]
[1738177252543,30.24397969,229.14,229.06,30.24397969]
[1738177252739,30.24397969,229.18,229.07,30.8987354]
[1738177252938,30.24397969,229.14,229.06,30.24397969]
[1738177253269,0.81109393,229.13,229.04,30.89866978]
[1738177253450,0.12549,229.13,229.05,0.65473385]
[1738177253762,0.81109393,229.13,229.06,0.12549]
[1738177253966,0.81109393,229.2,229.12,30.24397969]
[1738177254258,30.24397969,229.14,229.08,0.65458362]
[1738177254449,0.81109393,229.13,229.06,20.0]
[1738177254684,3.9276,229.15,229.07,0.65474065]
[1738177254879,0.12549,229.17,229.03,30.30697969]
[1738177254880,20.81109393,229.14,229.03,0.063]
[1738177255072,1.0,229.11,229.03,0.063]
[1738177255270,20.81109393,229.14,228.9,0.65502147]
[1738177255271,1.0,229.05,228.9,0.65502147]
[1738177255470,1.81109393,229.04,228.8,0.65531793]
[1738177255786,24.027864,228.99,228.8,0.65531793]
[1738177255987,32.70716939,228.86,228.8,0.65541768]
[1738177256167,32.70716939,228.88,228.8,0.65541768]
[1738177256367,0.81109393,228.87,228.8,33.36258707]
[1738177256694,0.81109393,229.04,228.85,37.07676939]
[1738177256861,0.81109393,229.03,228.9,0.12549]
[1738177257060,0.81109393,229.04,228.91,0.6550266]
[1738177257470,0.37647,228.99,228.86,0.65509041]
[1738177257676,0.81109393,228.98,228.84,0.65529301]
[1738177257874,32.70716939,228.91,228.84,0.65529301]
[1738177258182,32.70716939,228.91,228.67,51.78]
[1738177258183,32.70716939,228.85,228.74,0.65536376]
[1738177258503,0.81109393,228.9,228.83,0.063]
[1738177258788,24.027864,228.91,228.83,0.063]
[1738177258962,0.81109393,228.9,228.83,0.063]
[1738177259166,0.50196,228.84,228.83,0.063]
[1738177259381,33.76924332,228.84,228.83,0.063]
[1738177259590,32.70716939,228.77,228.66,32.70716939]
[1738177259896,32.70716939,228.77,228.68,32.70716939]
[1738177260062,32.70716939,228.88,228.75,32.70716939]
[1738177260269,0.81109393,228.87,228.76,0.65548258]
[1738177260466,32.70716939,228.79,228.73,0.65557836]
[1738177260677,1.0,228.88,228.7,0.65577342]
[1738177260878,0.81109393,228.87,228.71,32.70716939]
[1738177261070,32.70716939,228.85,228.75,32.70716939]
[1738177261280,32.70716939,228.79,228.69,32.70716939]
[1738177261477,32.70716939,228.79,228.61,32.70716939]
[1738177261478,32.70716939,228.71,228.61,32.70716939]
[1738177261789,1.06207393,228.76,228.62,0.65589787]
[1738177261987,0.81109393,228.82,228.68,0.25098]
[1738177262194,3.9315,228.92,228.65,0.65564235]
[1738177262195,0.81109393,228.81,228.65,0.65564235]
[1738177262388,0.81109393,228.89,228.66,0.65580658]
[1738177262769,0.81109393,228.89,228.67,0.12527519]
[1738177262974,32.70716939,228.74,228.62,33.36274083]
[1738177263278,32.70716939,228.74,228.63,0.6558249]
[1738177263469,1.0,228.9,228.58,33.70716939]
[1738177263470,1.0,228.89,228.58,33.70716939]
[1738177263796,1.0,228.83,228.59,0.65556081]
[1738177264097,24.027864,228.74,228.6,0.65593738]
[1738177264271,0.81109393,228.73,228.6,0.65593738]
[1738177264480,23.902374,228.72,228.55,4.3754]
[1738177264675,23.902374,228.72,228.54,0.65604214]
[1738177264676,32.70716939,228.65,228.57,4.375]
[1738177264871,32.70716939,228.85,228.68,0.12549]
[1738177265066,2.6052,229.0,228.69,0.65561697]
[1738177265067,1.0,228.87,228.69,0.65561697]
[1738177265267,0.81109393,228.81,228.59,0.6555545]
[1738177265467,1.81109393,228.81,228.6,0.65590922]
[1738177265691,0.12549,228.78,228.61,0.65599828]
[1738177265866,0.81109393,228.81,228.62,0.65595599]
[1738177265867,0.81109393,228.77,228.62,0.65595599]
[1738177266066,0.81109393,228.77,228.63,0.65592812]
[1738177266270,32.70716939,228.65,228.55,4.3752]
[1738177266496,32.70716939,228.71,228.57,32.70716939]
[1738177266679,0.81109393,228.79,228.64,4.3736]
[1738177266876,0.81109393,228.85,228.65,0.12549]
[1738177267097,4.74379393,228.85,228.67,20.12549]
[1738177267297,0.81109393,228.85,228.69,0.12549]
[1738177267494,0.81109393,228.9,228.77,0.25098]
[1738177267679,32.70716939,229.03,228.89,32.70716939]
[1738177267989,0.81109393,229.08,228.94,32.70716939]
[1738177267990,32.70716939,229.05,228.94,32.70716939]
[1738177268191,33.51826332,229.12,229.0,32.70716939]
[1738177268368,0.81109393,229.15,229.06,32.70716939]
[1738177268569,4.73729393,229.23,229.07,0.65468635]
[1738177268873,4.73729393,229.23,229.01,20.0]
[1738177269074,30.0,229.55,229.01,20.0]
[1738177269075,0.81109393,229.37,229.1,0.25098]
[1738177269283,0.81109393,229.37,229.12,0.12549]
[1738177269477,0.81109393,229.37,229.13,0.65434407]
[1738177269677,32.70716939,229.26,229.16,32.70716939]
[1738177269983,32.70716939,229.34,229.24,0.12549]
[1738177270295,3.9226,229.44,229.26,0.25098]
[1738177270469,1.0,229.62,229.28,0.12549]
[1738177270672,10.61199393,229.57,229.32,20.0]
[1738177270975,0.81109393,229.57,229.39,0.25098]
[1738177271173,0.81109393,229.58,229.42,1.0]
[1738177271372,0.03,229.59,229.57,32.70716939]
[1738177271680,0.03,229.59,229.58,0.65332185]
[1738177272181,0.03,229.64,229.62,20.12549]
[1738177272399,32.70716939,229.86,229.68,1.0]
[1738177272570,32.70716939,229.86,229.6,20.0]
[1738177272571,0.81109393,229.85,229.74,1.0]
[1738177272767,0.81109393,229.93,229.75,0.65286381]
[1738177273324,0.2,229.95,229.75,0.65286381]
[1738177273501,3.915,229.88,229.75,0.65286381]
[1738177273794,32.70716939,229.85,229.81,0.25098]
[1738177274015,0.03,229.87,229.86,0.12549]
[1738177274298,1.0,229.85,229.71,32.70716939]
[1738177274591,4.7610319,229.87,229.57,1.0]
[1738177274769,4.7610319,229.87,229.54,1.0]
[1738177274770,3.9454,229.87,229.58,4.3557]
[1738177274971,0.81593994,229.86,229.6,1.0]
[1738177275171,3.9454,229.87,229.61,20.0]
[1738177275477,32.70716939,229.82,229.7,32.70716939]
[1738177275678,0.81605601,229.81,229.78,32.70716939]
[1738177275886,24.153354,229.85,229.78,32.70716939]
[1738177276080,0.03,229.87,229.8,32.70716939]
[1738177276291,32.70716939,229.86,229.76,32.70716939]
[1738177276487,20.0,229.79,229.74,0.12549]
[1738177276688,20.0,229.75,229.66,32.70716939]
[1738177276895,20.0,229.73,229.66,32.70716939]
[1738177277196,32.70716939,229.74,229.64,32.70716939]
[1738177277497,32.53591553,229.76,229.65,32.53591553]
[1738177277676,1.0,229.76,229.52,4.3568]
[1738177277881,0.25098,229.74,229.5,6.412]
[1738177278074,0.81609512,229.75,229.5,6.412]
[1738177278075,0.81648834,229.73,229.5,6.412]
[1738177278484,23.776884,229.72,229.51,0.12549]
[1738177278687,3.9186,229.67,229.58,32.53591553]
[1738177278884,0.81649937,229.66,229.56,32.53591553]
[1738177279079,4.73513621,229.67,229.58,32.53591553]
[1738177279287,0.81652633,229.72,229.57,0.12549]
[1738177279493,3.9176,229.73,229.49,21.0]
[1738177279694,3.9157,229.84,229.57,1.0]
[1738177279896,3.9157,229.84,229.55,20.0]
[1738177279897,20.0,229.81,229.55,20.0]
[1738177280094,1.81624347,229.8,229.55,20.0]
[1738177280297,20.0,229.72,229.46,88.73391553]
[1738177280486,20.0,229.67,229.46,88.73391553]
[1738177280689,3.919,229.65,229.61,32.53591553]
[1738177280891,3.9183,229.69,229.63,32.53591553]
[1738177281212,3.9171,229.76,229.67,32.53591553]
[1738177281380,1.0,229.88,229.67,32.53591553]
[1738177281381,1.0,230.01,229.69,23.776884]
[1738177281585,0.64706355,230.0,229.7,0.65242489]
[1738177281783,9.7836,229.98,229.7,22.65242489]
[1738177281982,3.9141,229.94,229.7,20.65242489]
[1738177282284,36.48121553,229.87,229.77,32.53591553]
[1738177282603,32.53591553,229.85,229.75,32.53591553]
[1738177282792,32.53591553,229.81,229.71,33.1885996]
[1738177282978,23.776884,229.8,229.71,33.1885996]
[1738177283179,3.9161,229.82,229.75,32.53591553]
[1738177283380,3.9161,229.82,229.76,0.65273776]
[1738177283594,0.12549,229.81,229.73,32.53591553]
[1738177283782,3.9161,229.82,229.74,0.65282711]
[1738177283994,24.56316355,229.82,229.62,43.776884]
[1738177284196,23.776884,229.73,229.64,32.53591553]
[1738177284384,23.776884,229.73,229.54,51.76]
[1738177284596,0.12549,229.75,229.58,0.37647]
[1738177284800,3.9174,229.74,229.63,0.12549]
[1738177285016,3.9174,229.74,229.64,0.33226277]
[1738177285214,0.12549,229.72,229.61,0.33249826]
[1738177285402,0.12549,229.72,229.52,4.3569]
[1738177285403,9.789,229.85,229.71,32.53591553]
[1738177285596,9.789,229.85,229.68,32.53591553]
[1738177285597,3.9159,229.83,229.76,32.53591553]
[1738177285924,4.73182534,229.83,229.76,32.53591553]
[1738177286103,23.776884,229.82,229.76,32.53591553]
[1738177286417,3.9159,229.83,229.78,32.53591553]
[1738177286621,32.53591553,229.81,229.72,32.53591553]
[1738177286923,0.03,229.87,229.58,1.0]
[1738177286924,3.9164,229.8,229.78,32.53591553]
[1738177287420,0.12549,229.78,229.61,17.411553]
[1738177287636,0.81612447,229.78,229.67,32.53591553]
[1738177287796,0.81617493,229.79,229.7,32.53591553]
[1738177287996,1.0,229.77,229.57,0.063]
[1738177288234,13.7075,229.8,229.57,0.063]
[1738177288235,32.53591553,229.65,229.57,0.063]
[1738177288397,20.0,229.62,229.57,0.063]
[1738177288598,32.53591553,229.59,229.57,0.063]
[1738177288818,28.51385799,229.58,229.57,0.063]
[1738177288998,3.9202,229.58,229.57,0.063]
[1738177289622,9.7963,229.68,229.57,65.13483106]
[1738177289822,4.7350726,229.67,229.6,32.53591553]
[1738177290024,3.9186,229.67,229.62,32.53591553]
[1738177290229,3.9186,229.67,229.6,32.53591553]
[1738177290402,24.8443656,229.66,229.58,32.53591553]
[1738177290597,24.5933856,229.66,229.58,32.53591553]
[1738177290799,32.53591553,229.68,229.58,32.53591553]
[1738177291028,23.902374,229.59,229.57,0.063]
[1738177291212,24.7192231,229.58,229.57,0.063]
[1738177291409,0.25098,229.57,229.39,4.3592]
[1738177291612,24.278844,229.55,229.35,32.53591553]
[1738177291796,0.81696611,229.56,229.35,32.53591553]
[1738177291797,0.81712653,229.56,229.35,32.53591553]
[1738177292004,32.53591553,229.51,229.41,32.53591553]
[1738177292198,23.776884,229.52,229.43,32.53591553]
[1738177292406,32.53591553,229.63,229.52,0.12549]
[1738177292612,0.81664939,229.62,229.56,32.53591553]
[1738177292805,36.45521553,229.63,229.54,32.53591553]
[1738177293299,0.81667001,229.62,229.52,32.53591553]
[1738177293504,3.9193,229.63,229.56,32.53591553]
[1738177293706,9.7944,229.73,229.54,0.25098]
[1738177293905,32.53591553,229.59,229.5,32.53591553]
[1738177294218,0.25098,229.57,229.39,4.3593]
[1738177294426,0.12549,229.54,229.35,32.53591553]
[1738177294636,0.12549,229.51,229.28,70.2746]
[1738177294926,24.027864,229.52,229.29,4.3612]
[1738177294927,44.027864,229.49,229.29,4.3612]
[1738177295133,32.53591553,229.43,229.34,32.53591553]
[1738177295303,32.53591553,229.45,229.36,32.53591553]
[1738177295636,13.7254,229.5,229.34,32.53591553]
[1738177295637,32.53591553,229.43,229.34,32.53591553]
[1738177295928,32.53591553,229.45,229.36,32.53591553]
[1738177296129,32.53591553,229.45,229.28,56.0813]
[1738177296130,32.53591553,229.41,229.32,32.53591553]
[1738177296433,0.81738862,229.49,229.28,20.0]
[1738177296615,32.53591553,229.46,229.36,32.53591553]
[1738177296804,32.53591553,229.48,229.39,32.53591553]
[1738177297006,23.902374,229.47,229.37,32.53591553]
[1738177297218,32.53591553,229.46,229.37,32.53591553]
[1738177297434,32.53591553,229.44,229.35,32.53591553]
[1738177297642,32.53591553,229.42,229.33,32.53591553]
[1738177297808,32.53591553,229.4,229.31,32.53591553]
[1738177298007,32.53591553,229.44,229.35,32.53591553]
[1738177298233,13.7224,229.55,229.35,32.53591553]
[1738177298234,32.53591553,229.46,229.35,32.53591553]
[1738177298411,32.53591553,229.46,229.38,0.12549]
[1738177298611,32.53591553,229.48,229.37,32.53591553]
[1738177298825,32.53591553,229.46,229.37,32.53591553]
[1738177299334,32.53591553,229.46,229.36,0.063]
[1738177299628,32.53591553,229.5,229.41,32.53591553]
[1738177299818,32.53591553,229.52,229.43,32.53591553]
[1738177300014,32.53591553,229.52,229.41,32.53591553]
[1738177300219,0.37647,229.47,229.36,0.063]
[1738177300530,32.53591553,229.38,229.36,0.063]
[1738177301032,32.53591553,229.42,229.36,0.063]
[1738177301203,32.53591553,229.4,229.36,0.063]
[1738177301407,32.91238553,229.46,229.36,0.063]
[1738177301408,32.53591553,229.38,229.36,0.063]
[1738177301831,20.74553719,229.38,229.36,0.063]
[1738177302933,32.53591553,229.44,229.38,20.0]
[1738177303137,32.53591553,229.5,229.4,0.25098]
[1738177303314,32.53591553,229.54,229.44,32.53591553]
[1738177303515,33.35298573,229.56,229.46,32.53591553]
[1738177303732,32.53591553,229.52,229.43,0.12549]
[1738177303930,32.53591553,229.52,229.43,0.25098]
[1738177304131,32.53591553,229.54,229.46,32.53591553]
[1738177304329,32.53591553,229.52,229.42,32.53591553]
[1738177304717,23.776884,229.49,229.4,32.53591553]
[1738177304912,23.776884,229.49,229.39,24.3592]
[1738177304913,32.53591553,229.46,229.39,24.3592]
[1738177305111,32.53591553,229.5,229.4,32.53591553]
[1738177305437,32.53591553,229.48,229.39,24.3592]
[1738177305609,32.53591553,229.42,229.36,0.063]
[1738177305814,32.53591553,229.46,229.37,36.89561553]
[1738177306026,32.53591553,229.53,229.45,32.53591553]
[1738177306218,32.53591553,229.55,229.45,32.53591553]
[1738177306524,32.53591553,229.46,229.37,4.3597]
[1738177306722,32.53591553,229.46,229.38,20.0]
[1738177306917,32.53591553,229.46,229.35,32.53591553]
[1738177307117,32.53591553,229.44,229.38,20.0]
[1738177307428,3.922,229.48,229.38,20.0]
[1738177307429,32.53591553,229.48,229.39,0.12549]
[1738177307612,0.03,229.57,229.48,0.12549]
[1738177307944,0.03,229.57,229.53,32.53591553]
[1738177308107,0.03,229.57,229.39,6.6346]
[1738177308307,24.027864,229.53,229.39,6.6346]
[1738177308641,0.03,229.57,229.39,20.0]
[1738177308851,0.03,229.57,229.41,4.359]
[1738177309348,0.25098,229.55,229.37,4.3597]
[1738177309648,24.027864,229.5,229.41,32.53591553]
[1738177309821,32.53591553,229.49,229.39,32.53591553]
[1738177310148,1.0,229.59,229.37,4.3597]
[1738177310149,0.03,229.57,229.48,0.12549]
[1738177310335,0.03,229.57,229.5,32.53591553]
[1738177311039,0.03,229.57,229.56,0.12549]
[1738177311221,0.03,229.57,229.56,32.53591553]
[1738177311607,0.03,229.57,229.56,32.78689553]
[1738177311814,0.03,229.57,229.56,32.66140553]
[1738177312010,0.03,229.57,229.54,32.53591553]
[1738177312218,32.53591553,229.55,229.41,32.53591553]
[1738177312445,32.53591553,229.46,229.38,0.063]
[1738177312618,32.53591553,229.46,229.38,0.18849]
[1738177312818,32.53591553,229.46,229.38,0.063]
[1738177313033,3.922,229.47,229.39,32.53591553]
[1738177313236,32.53591553,229.4,229.38,0.063]
[1738177313445,32.53591553,229.44,229.38,0.063]
[1738177313829,32.53591553,229.42,229.38,0.063]
[1738177314026,32.53591553,229.4,229.38,0.063]
[1738177314228,24.59429,229.39,229.38,0.063]
[1738177314442,32.53591553,229.42,229.38,0.063]
[1738177314629,33.35340282,229.45,229.38,0.063]
[1738177314824,32.53591553,229.45,229.38,0.063]
[1738177315029,36.45841553,229.45,229.38,0.063]
[1738177315229,3.9212,229.52,229.43,32.53591553]
[1738177315535,3.9212,229.52,229.41,32.53591553]